[Event "UZB-ch Women 2021"]
[Site "Tashkent"]
[Date "2021.04.17"]
[Round "1.2"]
[White "Malikova, Marjona"]
[Black "Abdusattorova, Bakhora"]
[Result "1/2-1/2"]
[ECO "E35"]
[WhiteElo "1651"]
[BlackElo "2078"]
[Annotator "NA"]
[PlyCount "100"]
[EventDate "2021.04.17"]
[EventType "tourn"]
[EventCountry "UZB"]
[SourceVersionDate "2021.04.17"]
[TimeControl "5400+30"]

1. d4 Nf6 2. c4 e6 3. Nc3 Bb4 4. Qc2 d5 5. cxd5 exd5 6. Bg5 h6 7. Bh4 Nc6 8. e3 g5 9. Bg3 Qe7 10. Bb5 Bd7 11. Nge2 a6 12. Bxc6 Bxc6 13. Be5 Rg8 14. Qf5 Rg6 15. h4 Bd7 16. Qc2 c6 17. hxg5 Rxg5 18. Rxh6 Ng8 19. Rh8 O-O-O 20. O-O-O Bf5 21. Qb3 Rxg2 22. Na4 Bd6 23. Bxd6 Qxd6 24. Nc5 Qc7 25. Rf1 Re8 26. Nf4 Rg4 27. Nfd3 Nf6 28. Rxe8+ Nxe8 29. Qd1 Qa5 30. Ne5 Rh4 31. Qb3 Qc7 32. Rg1 Rh8 33. Qd1 f6 34. Qf3 Nd6 35. Ng4 Qa5 36. e4 dxe4 37. Qf4 Rd8 38. Nxf6 Qxa2 39. Rg5 Qc4+ 40. Kb1 Bh3 41. Qg3 Qf1+ 42. Ka2 Nb5 43. Rg7 Qc4+ 44. Kb1 Bf5 45. Qe5 Bh3 46. Rxb7 Qf1+ 47. Ka2 Qc4+ 48. Kb1 Qf1+ 49. Ka2 Qc4+ 50. Kb1 Qf1+ 1/2-1/2

[Event "UZB-ch Women 2021"]
[Site "Tashkent"]
[Date "2021.04.17"]
[Round "1.3"]
[White "Saparova, Sitora"]
[Black "Salimova, Asal"]
[Result "0-1"]
[ECO "C54"]
[WhiteElo "2017"]
[BlackElo "1815"]
[Annotator "NA"]
[PlyCount "54"]
[EventDate "2021.04.17"]
[EventType "tourn"]
[EventCountry "UZB"]
[SourceVersionDate "2021.04.17"]
[TimeControl "5400+30"]

1. e4 e5 2. Nf3 Nc6 3. Bc4 Bc5 4. c3 Nf6 5. d4 exd4 6. e5 d5 7. Bb5 Ne4 8. cxd4 Bb6 9. O-O Bg4 10. Be3 O-O 11. Bxc6 bxc6 12. Nc3 f6 13. Ne2 Qe8 14. a4 fxe5 15. Nxe5 Bxe2 16. Qxe2 c5 17. dxc5 Qxe5 18. cxb6 axb6 19. b4 Nxf2 20. Rac1 Ne4 21. Rxf8+ Rxf8 22. Qd3 Nf6 23. Rf1 Ng4 24. Rxf8+ Kxf8 25. Qf1+ Kg8 26. Bf4 Qd4+ 27. Kh1 Nf2+ 0-1

[Event "UZB-ch Women 2021"]
[Site "Tashkent"]
[Date "2021.04.17"]
[Round "1.4"]
[White "Omonova, Umida"]
[Black "Shokirjonova, Barchinoy"]
[Result "1-0"]
[ECO "C07"]
[WhiteElo "2008"]
[BlackElo "1594"]
[Annotator "NA"]
[PlyCount "97"]
[EventDate "2021.04.17"]
[EventType "tourn"]
[EventCountry "UZB"]
[SourceVersionDate "2021.04.17"]
[TimeControl "5400+30"]

1. e4 e6 2. d4 d5 3. Nd2 c5 4. exd5 Qxd5 5. Ngf3 cxd4 6. Bc4 Qd6 7. O-O Nf6 8. Nb3 Nc6 9. Nbxd4 Nxd4 10. Nxd4 a6 11. Re1 Qc7 12. Bf1 Bd6 13. Nf5 Bxh2+ 14. Kh1 Kf8 15. Qd4 exf5 16. Qxf6 h6 17. Qd4 Bd6 18. Bc4 Bc5 19. Qd5 Kg8 20. Bf4 Qxf4 21. Qxc5 Bd7 22. Bxf7+ Kh7 23. Rad1 Rhc8 24. Qe5 Qxe5 25. Rxe5 Bb5 26. Be6 Re8 27. Bxf5+ g6 28. Rxe8 Rxe8 29. Bg4 Bc6 30. Rd2 h5 31. Be2 Kh6 32. Kg1 Re5 33. f3 Kg7 34. Kf2 g5 35. c4 a5 36. b3 Kf7 37. a3 Ke7 38. Rd4 h4 39. b4 b6 40. Bd3 Ke6 41. Rd8 axb4 42. axb4 b5 43. c5 Ke7 44. Rd6 Re6 45. Rd4 Kf6 46. Rd8 Ke5 47. Rb8 Rf6 48. Bxb5 Bd5 49. Ke3 1-0

[Event "UZB-ch Women 2021"]
[Site "Tashkent"]
[Date "2021.04.17"]
[Round "1.5"]
[White "Semenova, Irina"]
[Black "Orazmukhammedova, Makhim"]
[Result "1-0"]
[ECO "D46"]
[WhiteElo "2188"]
[BlackElo "1898"]
[Annotator "NA"]
[PlyCount "81"]
[EventDate "2021.04.17"]
[EventType "tourn"]
[EventCountry "UZB"]
[SourceVersionDate "2021.04.17"]
[TimeControl "5400+30"]

1. d4 d5 2. c4 c6 3. Nc3 Nf6 4. Nf3 e6 5. e3 Nbd7 6. Qc2 Be7 7. b3 O-O 8. Bd3 Re8 9. O-O Bd6 10. Bb2 h6 11. h3 b6 12. e4 dxe4 13. Nxe4 Nxe4 14. Bxe4 Bb7 15. Ne5 Qc7 16. Nxd7 Qxd7 17. Rad1 Rad8 18. c5 Bb8 19. b4 Qc7 20. g3 a5 21. a3 axb4 22. axb4 bxc5 23. bxc5 Ba6 24. Rfe1 Bb5 25. Qc3 f5 26. Bf3 Qf7 27. Ra1 h5 28. h4 e5 29. Qb4 e4 30. Bd1 Kh7 31. Bb3 Qg6 32. Qc3 f4 33. Bc2 fxg3 34. f3 Bd3 35. fxe4 Bxe4 36. Rxe4 Rxe4 37. Qf3 Rde8 38. Rf1 Qg4 39. Qxg4 hxg4 40. Re1 g6 41. Bxe4 1-0

[Event "UZB-ch Women 2021"]
[Site "Tashkent"]
[Date "2021.04.20"]
[Round "2.2"]
[White "Salimova, Asal"]
[Black "Omonova, Umida"]
[Result "0-1"]
[ECO "D02"]
[WhiteElo "1815"]
[BlackElo "2008"]
[Annotator "NA RC"]
[PlyCount "158"]
[EventDate "2021.04.17"]
[EventType "tourn"]
[EventCountry "UZB"]
[SourceTitle "playchess.com"]
[Source "ChessBase"]
[SourceQuality "1"]
[TimeControl "5400+30"]

1. d4 {[%emt 0:00:00]} d5 {[%emt 0:01:08]} 2. Bf4 {[%emt 0:00:00]} Nf6 {[%emt 0:00:13]} 3. e3 {[%emt 0:00:01]} c5 {[%emt 0:00:07]} 4. Nf3 {[%emt 0:00:06]} Nc6 {[%emt 0:00:07]} 5. Nbd2 {[%emt 0:00:37]} Bg4 {[%emt 0:03:01]} 6. h3 {[%emt 0:08:21]} Bxf3 {[%emt 0:01:10]} 7. Nxf3 {[%emt 0:03:09]} e6 {[%emt 0:01:31]} 8. c3 {[%emt 0:29:14]} Bd6 {[%emt 0:14:30]} 9. Bb5 {[%emt 0:03:35]} Bxf4 {[%emt 0:01:10]} 10. exf4 {[%emt 0:00:50]} Qb6 {[%emt 0:01:31]} 11. Qa4 {[%emt 0:27:30]} O-O {[%emt 0:02:53]} 12. dxc5 {[%emt 0:01:53]} Qxc5 {[%emt 0:00:25]} 13. O-O {[%emt 0:00:42]} Ne7 {[%emt 0:02:26]} 14. Bd3 {[%emt 0:00:23]} a6 {[%emt 0:01:53]} 15. Rfe1 {[%emt 0:01:15]} Rfd8 {[%emt 0:11:19]} 16. Rad1 {[%emt 0:01:46]} Ng6 {[%emt 0:01:41]} 17. f5 {[%emt 0:00:51]} exf5 {[%emt 0:03:53]} 18. Bxf5 {[%emt 0:00:22]} Re8 {[%emt 0:01:49]} 19. Bxg6 {[%emt 0:08:34]} hxg6 {[%emt 0:00:02]} 20. Qd4 {[%emt 0:00:16]} Qb5 {[%emt 0:00:45]} 21. Qd2 {[%emt 0:03:16]} Rad8 {[%emt 0:01:11]} 22. Nd4 {[%emt 0:01:50]} Qc4 {[%emt 0:00:41]} 23. a3 {[%emt 0:00:36]} Qc7 {[%emt 0:06:30]} 24. Rxe8+ {[%emt 0:01:52]} Rxe8 {[%emt 0:00:24]} 25. Re1 {[%emt 0:00:07]} Ne4 {[%emt 0:07:56]} 26. Qe3 {[%emt 0:00:08]} Qb6 {[%emt 0:01:39]} 27. Re2 {[%emt 0:02:44]} Nd6 {[%emt 0:03:51]} 28. Qd2 {[%emt 0:01:40]} Rxe2 {[%emt 0:01:00]} 29. Qxe2 {[%emt 0:00:14]} Kf8 {[%emt 0:00:00]} 30. Qc2 {[%emt 0:02:34]} Nc4 {[%emt 0:00:00]} 31. b3 {[%emt 0:00:13]} Nxa3 {[%emt 0:00:31]} 32. Qd2 {[%emt 0:00:31]} Nb5 {[%emt 0:02:20]} 33. Ne2 {[%emt 0:00:39]} Qc5 {[%emt 0:00:29]} 34. Qf4 {[%emt 0:00:38]} Qc7 {[%emt 0:00:08]} 35. Qh4 {[%emt 0:00:17]} Kg8 {[%emt 0:02:33]} 36. Qg5 {[%emt 0:00:24]} Qd6 {[%emt 0:00:56]} 37. Qe3 {[%emt 0:00:45]} Qe6 {[%emt 0:01:07]} 38. Qd2 {[%emt 0:00:12]} g5 {[%emt 0:01:10]} 39. h4 {[%emt 0:00:34]} gxh4 {[%emt 0:01:16]} 40. Nf4 {[%emt 0:00:16]} Qh6 {[%emt 0:00:01]} 41. Qe3 {[%emt 0:01:02]} Nxc3 {[%emt 0:01:14]} 42. Qxc3 {[%emt 0:00:30]} Qxf4 {[%emt 0:00:01]} 43. Qc8+ {[%emt 0:00:14]} Kh7 {[%emt 0:00:02]} 44. Qxb7 {[%emt 0:00:23]} Qf5 {[%emt 0:02:34]} 45. b4 {[%emt 0:00:36]} d4 {[%emt 0:01:13]} 46. Qxa6 {[%emt 0:00:18]} Qb1+ {[%emt 0:00:08]} 47. Qf1 {[%emt 0:00:34]} Qxb4 {[%emt 0:23:01]} 48. Qd3+ {[%emt 0:01:28]} Kh6 {[%emt 0:00:00]} 49. Qe4 {[%emt 0:00:00]} g5 {[%emt 0:00:00]} 50. Qe5 {[%emt 0:00:12]} Kg6 {[%emt 0:00:00]} 51. Qe4+ {[%emt 0:00:09]} Kg7 {[%emt 0:00:00]} 52. Qe5+ {[%emt 0:00:37]} f6 {[%emt 0:00:00]} 53. Qc7+ {[%emt 0:00:12]} Kg6 {[%emt 0:00:00]} 54. Qc2+ {[%emt 0:00:08]} Kh6 {[%emt 0:00:00]} 55. Qe4 {[%emt 0:01:12]} Qd6 {[%emt 0:00:00]} 56. Qe8 {[%emt 0:00:34]} Kg7 {[%emt 0:00:00]} 57. Qc8 {[%emt 0:00:51]} d3 {[%emt 0:00:00]} 58. Qb7+ {[%emt 0:00:04]} Kh6 {[%emt 0:00:00]} 59. Qc8 {[%emt 0:00:23]} d2 {[%emt 0:00:00]} 60. Qh8+ {[%emt 0:00:05]} Kg6 {[%emt 0:00:00]} 61. Qg8+ {[%emt 0:00:09]} Kf5 {[%emt 0:00:00]} 62. Qc8+ {[%emt 0:00:12]} Ke5 {[%emt 0:00:00]} 63. Qe8+ {[%emt 0:00:37]} Kf4 {[%emt 0:00:00]} 64. Qa4+ {[%emt 0:00:32]} Ke5 {[%emt 0:00:00]} 65. Qe8+ {[%emt 0:00:07]} Kd4 {[%emt 0:00:00]} 66. Qa4+ {[%emt 0:01:00]} Kc3 {[%emt 0:00:00]} 67. Qa1+ {[%emt 0:00:20]} Kd3 {[%emt 0:00:00]} 68. Qb1+ {[%emt 0:00:17]} Kd4 {[%emt 0:00:00]} 69. Qb2+ {[%emt 0:00:37]} Ke4 {[%emt 0:00:00]} 70. Qb1+ {[%emt 0:00:30]} Qd3 {[%emt 0:00:00]} 71. Qb7+ {[%emt 0:00:24]} Qd5 {[%emt 0:00:00]} 72. Qe7+ {[%emt 0:01:28]} Kd3 {[%emt 0:00:00]} 73. Qa3+ {[%emt 0:00:32]} Kc2 {[%emt 0:00:00]} 74. Qa4+ {[%emt 0:00:10]} Qb3 {[%emt 0:00:00]} 75. Qc6+ {[%emt 0:00:55]} Kb1 {[%emt 0:00:00]} 76. Qe4+ {[%emt 0:00:19]} Kc1 {[%emt 0:00:00]} 77. Qc6+ {[%emt 0:00:59]} Qc2 {[%emt 0:00:00]} 78. Qxf6 {[%emt 0:00:16]} d1=Q+ {[%emt 0:00:00]} 79. Kh2 {[%emt 0:00:13]} Qc7+ {[%emt 0:00:00]} 0-1

[Event "UZB-ch Women 2021"]
[Site "Tashkent"]
[Date "2021.04.20"]
[Round "4.1"]
[White "Salimova, Asal"]
[Black "Orazmukhammedova, Makhim"]
[Result "1-0"]
[ECO "D02"]
[WhiteElo "1815"]
[BlackElo "1898"]
[Annotator "NA RC"]
[PlyCount "51"]
[EventDate "2021.04.17"]
[EventType "tourn"]
[EventCountry "UZB"]
[SourceTitle "playchess.com"]
[Source "ChessBase"]
[SourceQuality "1"]
[TimeControl "5400+30"]

1. d4 {[%emt 0:00:09]} d5 {[%emt 0:00:00]} 2. Bf4 {[%emt 0:00:06]} c5 {[%emt 0:00:00]} 3. e3 {[%emt 0:00:05]} Nc6 {[%emt 0:00:12]} 4. Nf3 {[%emt 0:00:11]} Nf6 {[%emt 0:01:23]} 5. Nbd2 {[%emt 0:00:09]} Bf5 {[%emt 0:01:03]} 6. dxc5 {[%emt 0:00:24]} e6 {[%emt 0:23:59]} 7. Nb3 {[%emt 0:05:40]} Nd7 {[%emt 0:07:24]} 8. Nfd4 {[%emt 0:22:05]} Bg6 {[%emt 0:07:48]} 9. Nb5 {[%emt 0:16:29]} e5 {[%emt 0:05:27]} 10. Bg3 {[%emt 0:01:19]} Nb4 {[%emt 0:16:02]} 11. Na3 {[%emt 0:01:17]} f6 {[%emt 0:12:17]} 12. c3 {[%emt 0:03:08]} Nc6 {[%emt 0:00:04]} 13. Qxd5 {[%emt 0:01:42]} Nxc5 {[%emt 0:01:05]} 14. Qxd8+ {[%emt 0:20:19]} Rxd8 {[%emt 0:00:01]} 15. Nxc5 {[%emt 0:06:59]} Bxc5 {[%emt 0:00:02]} 16. Nb1 {[%emt 0:03:11]} Ke7 {[%emt 0:01:30]} 17. Nd2 {[%emt 0:00:19]} Nb4 {[%emt 0:06:22]} 18. cxb4 {[%emt 0:01:41]} Bxb4 {[%emt 0:00:01]} 19. O-O-O {[%emt 0:00:42]} Rc8+ {[%emt 0:00:52]} 20. Nc4 {[%emt 0:00:16]} b5 {[%emt 0:00:49]} 21. a3 {[%emt 0:03:42]} Ba5 {[%emt 0:00:10]} 22. Rd5 {[%emt 0:04:39]} Bf7 {[%emt 0:11:26]} 23. Rxb5 {[%emt 0:00:14]} Bxc4 {[%emt 0:00:02]} 24. Bxc4 {[%emt 0:01:01]} Rxc4+ {[%emt 0:00:01]} 25. Kb1 {[%emt 0:00:07]} Rhc8 {[%emt 0:00:44]} 26. Rxa5 {[%emt 0:00:10]} 1-0

[Event "UZB-ch Women 2021"]
[Site "Tashkent"]
[Date "2021.04.21"]
[Round "5.4"]
[White "Shokirjonova, Barchinoy"]
[Black "Salimova, Asal"]
[Result "0-1"]
[ECO "A40"]
[WhiteElo "1594"]
[BlackElo "1815"]
[Annotator "NA RC"]
[PlyCount "92"]
[EventDate "2021.04.17"]
[EventType "tourn"]
[EventCountry "UZB"]
[SourceTitle "playchess.com"]
[Source "ChessBase"]
[SourceQuality "1"]
[TimeControl "5400+30"]

1. d4 {[%emt 0:00:00]} g6 {[%emt 0:00:00]} 2. Nf3 {[%emt 0:00:00]} Bg7 {[%emt 0:00:00]} 3. c4 {[%emt 0:00:00]} c5 {[%emt 0:00:00]} 4. d5 {[%emt 0:00:13]} d6 {[%emt 0:00:06]} 5. Nc3 {[%emt 0:00:40]} Bxc3+ {[%emt 0:00:43]} 6. bxc3 {[%emt 0:00:06]} f5 {[%emt 0:00:02]} 7. h4 {[%emt 0:03:22]} Nf6 {[%emt 0:00:04]} 8. g3 {[%emt 0:03:15]} Qa5 {[%emt 0:00:14]} 9. Bd2 {[%emt 0:00:46]} Nbd7 {[%emt 0:00:26]} 10. e3 {[%emt 0:09:02]} Nb6 {[%emt 0:03:48]} 11. h5 {[%emt 0:05:23]} Rg8 {[%emt 0:01:17]} 12. hxg6 {[%emt 0:09:37]} hxg6 {[%emt 0:00:02]} 13. Bd3 {[%emt 0:02:56]} Bd7 {[%emt 0:00:28]} 14. Ng5 {[%emt 0:01:14]} O-O-O {[%emt 0:00:38]} 15. Qf3 {[%emt 0:22:19]} Qa6 {[%emt 0:04:28]} 16. O-O {[%emt 0:03:10]} Nbxd5 {[%emt 0:05:24]} 17. Qe2 {[%emt 0:14:16]} Nb6 {[%emt 0:00:30]} 18. f3 {[%emt 0:00:46]} Bc6 {[%emt 0:04:27]} 19. e4 {[%emt 0:00:41]} fxe4 {[%emt 0:02:17]} 20. fxe4 {[%emt 0:00:03]} Nbd7 {[%emt 0:01:00]} 21. Bf4 {[%emt 0:01:59]} Nh5 {[%emt 0:08:18]} 22. Nf7 {[%emt 0:07:29]} Nxf4 {[%emt 0:03:16]} 23. Rxf4 {[%emt 0:00:22]} Rdf8 {[%emt 0:12:27]} 24. Raf1 {[%emt 0:00:11]} Qa5 {[%emt 0:00:31]} 25. Qd2 {[%emt 0:06:08]} Qc7 {[%emt 0:00:53]} 26. Qe2 {[%emt 0:01:03]} Kb8 {[%emt 0:51:41]} 27. R1f2 {[%emt 0:01:09]} (27. e5 $17 {was called for.}) 27... a6 {[%emt 0:00:00]} 28. g4 {[%emt 0:00:52]} Ka7 {[%emt 0:01:00]} 29. g5 Rb8 {[%emt 0:00:00]} 30. Qf1 {[%emt 0:01:33]} b5 {[%emt 0:00:00]} 31. cxb5 {[%emt 0:01:13]} Bxb5 {[%emt 0:00:00]} 32. a4 {[%emt 0:01:56]} Bxd3 {[%emt 0:00:00]} 33. Qxd3 {[%emt 0:00:03]} Rb3 {[%emt 0:00:00]} 34. Qc4 {[%emt 0:01:19]} Rgb8 {[%emt 0:00:00]} 35. Qe6 {[%emt 0:00:45]} Nf8 {[%emt 0:00:00]} 36. Qc4 {[%emt 0:00:01]} Rb1+ {[%emt 0:00:00]} 37. Kg2 {[%emt 0:04:38]} R1b2 {[%emt 0:00:00]} 38. Nh8 {[%emt 0:00:00]} Rxf2+ {[%emt 0:00:00]} (38... Qc8 $142 39. Rh4 Ne6) 39. Rxf2 $19 {[%emt 0:00:00]} Qd7 {[%emt 0:00:00]} 40. Kg3 {[%emt 0:00:00]} Ne6 {[%emt 0:00:00]} 41. Nf7 {[%emt 0:00:00]} Ng7 {[%emt 0:00:00]} 42. Qd5 {[%emt 0:00:16]} Nh5+ {[%emt 0:07:00]} 43. Kh4 Rb1 {[%emt 0:00:00]} 44. e5 {[%emt 0:01:41]} Qxa4+ {[%emt 0:00:00]} 45. c4 {[%emt 0:02:03]} Rd1 {[%emt 0:00:00]} 46. Qe4 {[%emt 0:00:00]} Rd4 {[%emt 0:00:00]} 0-1

[Event "UZB-ch Women 2021"]
[Site "Tashkent"]
[Date "2021.04.23"]
[Round "7.3"]
[White "Shokirjonova, Barchinoy"]
[Black "Khegay, Yuliya"]
[Result "1/2-1/2"]
[ECO "D26"]
[WhiteElo "1594"]
[BlackElo "1913"]
[Annotator "NA RC"]
[PlyCount "79"]
[EventDate "2021.04.17"]
[EventType "tourn"]
[EventCountry "UZB"]
[SourceTitle "playchess.com"]
[Source "ChessBase"]
[SourceQuality "1"]
[TimeControl "5400+30"]

1. d4 {[%emt 0:00:00]} d5 {[%emt 0:00:00]} 2. c4 {[%emt 0:00:00]} dxc4 {[%emt 0:00:00]} 3. Nf3 {[%emt 0:00:00]} Nf6 {[%emt 0:00:00]} 4. e3 {[%emt 0:00:00]} e6 {[%emt 0:00:00]} 5. Bxc4 {[%emt 0:00:00]} a6 {[%emt 0:00:00]} 6. Be2 {[%emt 0:01:24] D26: Queen's Gambit Accepted: 4 e3 e6 5 Bxc5 c5 sidelines.} Be7 {[%emt 0:02:23]} 7. Nbd2 {[%emt 0:01:29]} Nbd7 {[%emt 0:02:26]} 8. b3 {[%emt 0:02:12] The position is equal.} O-O {[%emt 0:04:57]} 9. O-O {[%emt 0:00:29]} b5 {[%emt 0:11:20]} 10. Bb2 {[%emt 0:06:11]} Bb7 {[%emt 0:00:49]} 11. a4 {[%emt 0:06:18]} b4 {[%emt 0:01:23]} 12. Rc1 {[%emt 0:01:39] [#]} Rc8 $146 {[%emt 0:04:08]} ({Predecessor:} 12... c5 13. dxc5 Bxc5 14. Ne5 Rc8 15. Nxd7 Qxd7 16. Bxf6 gxf6 17. Nc4 Qxd1 18. Rfxd1 Bd5 {½-½ (82) Aronian,L (2781)-Harikrishna,P (2732) chess24.com INT 2020}) 13. Ne5 {[%emt 0:04:46]} c5 {[%emt 0:10:57]} 14. Bf3 {[%emt 0:05:54]} Bxf3 {[%emt 0:03:21]} 15. Qxf3 {[%emt 0:08:56]} Nd5 {[%emt 0:27:31] Weighted Error Value: White=0.06/Black=0.07} 16. Nxd7 {[%emt 0:16:53]} Qxd7 {[%emt 0:00:15]} 17. Nc4 {[%emt 0:00:57]} Qd8 {[%emt 0:08:12]} 18. e4 {[%emt 0:07:49]} Nb6 {[%emt 0:04:32]} 19. dxc5 {[%emt 0:03:00]} Nxc4 {[%emt 0:00:49]} 20. Rxc4 {[%emt 0:00:19]} Rxc5 {[%emt 0:03:00]} 21. Rxc5 {[%emt 0:10:11]} Bxc5 {[%emt 0:00:03]} 22. Qg4 {[%emt 0:00:16]} g6 {[%emt 0:07:10]} 23. Rd1 {[%emt 0:02:49]} Qe7 {[%emt 0:04:27]} 24. Qf3 {[%emt 0:05:15]} Rd8 {[%emt 0:01:04]} 25. g3 {[%emt 0:02:45]} Kf8 {[%emt 0:02:34]} 26. Rxd8+ {[%emt 0:05:28]} Qxd8 {[%emt 0:00:01]} 27. Qf4 {[%emt 0:00:16]} Bd4 {[%emt 0:01:23]} 28. Qd2 {[%emt 0:00:50]} e5 {[%emt 0:00:18]} 29. Qxb4+ {[%emt 0:00:07]} Ke8 {[%emt 0:00:52]} 30. Ba3 {[%emt 0:00:29]} Qf6 {[%emt 0:00:24]} 31. Qd2 {[%emt 0:02:21]} Qf3 {[%emt 0:00:25]} 32. Qc2 {[%emt 0:00:05]} Kd7 {[%emt 0:00:36]} 33. Bc1 {[%emt 0:05:10]} h5 {[%emt 0:00:30]} 34. b4 {[%emt 0:00:55]} h4 {[%emt 0:00:16]} 35. gxh4 {[%emt 0:00:17]} Qg4+ {[%emt 0:00:03]} 36. Kf1 {[%emt 0:00:40]} Qh3+ {[%emt 0:00:36]} 37. Kg1 {[%emt 0:00:26]} Qg4+ {[%emt 0:00:34]} 38. Kf1 {[%emt 0:00:05]} Qh3+ {[%emt 0:00:03]} 39. Kg1 {[%emt 0:01:08]} Qg4+ {[%emt 0:00:02]} 40. Kf1 {[%emt 0:02:11]} 1/2-1/2

[Event "UZB-ch Women 2021"]
[Site "Tashkent"]
[Date "2021.04.24"]
[Round "8.1"]
[White "Khegay, Yuliya"]
[Black "Salimova, Asal"]
[Result "0-1"]
[ECO "B15"]
[WhiteElo "1913"]
[BlackElo "1815"]
[Annotator "RC"]
[PlyCount "102"]
[EventDate "2021.04.17"]
[EventType "tourn"]
[EventCountry "UZB"]
[SourceTitle "playchess.com"]
[Source "ChessBase"]
[SourceQuality "1"]
[TimeControl "5400+30"]

1. e4 {[%emt 0:00:00]} g6 {[%emt 0:00:00]} 2. d4 {[%emt 0:00:00]} Bg7 {[%emt 0:00:00]} 3. Nf3 {[%emt 0:00:05]} c6 {[%emt 0:00:51]} 4. Nc3 {[%emt 0:01:03]} d5 {[%emt 0:02:26]} 5. h3 {[%emt 0:05:22]} h6 {[%emt 0:07:08]} 6. exd5 {[%emt 0:09:44]} cxd5 {[%emt 0:00:08]} 7. Bf4 {[%emt 0:00:39]} a6 {[%emt 0:00:44]} 8. Bd3 {[%emt 0:04:24]} Nc6 {[%emt 0:02:42]} 9. Be2 {[%emt 0:08:41]} Bf5 {[%emt 0:06:04]} 10. a3 {[%emt 0:02:12]} Be4 {[%emt 0:02:59]} 11. Be3 {[%emt 0:01:43]} e6 {[%emt 0:03:49]} 12. O-O {[%emt 0:19:39]} Bxf3 {[%emt 0:01:55]} 13. Bxf3 {[%emt 0:00:07]} Nge7 {[%emt 0:00:04]} 14. Ne2 {[%emt 0:10:47]} Nf5 {[%emt 0:00:24]} 15. c3 {[%emt 0:02:29]} Nh4 {[%emt 0:03:14]} 16. Nf4 {[%emt 0:02:10]} Nxf3+ {[%emt 0:00:15]} 17. Qxf3 {[%emt 0:00:03]} Qf6 {[%emt 0:01:03]} 18. Qe2 {[%emt 0:02:49]} O-O {[%emt 0:00:29]} 19. Nd3 {[%emt 0:01:24]} Rfc8 {[%emt 0:03:13]} 20. Qd2 {[%emt 0:02:58]} Kh7 {[%emt 0:00:31]} 21. Nc5 {[%emt 0:00:39]} b6 {[%emt 0:00:44]} 22. Nb3 {[%emt 0:00:39]} Ne7 {[%emt 0:03:13]} 23. Bf4 {[%emt 0:02:25]} Rc6 {[%emt 0:15:52]} 24. Rfe1 {[%emt 0:02:07]} Nc8 {[%emt 0:00:38]} 25. Qe3 {[%emt 0:05:43]} Nd6 {[%emt 0:01:23]} 26. Bxd6 {[%emt 0:00:09]} Rxd6 {[%emt 0:00:01]} 27. Nc1 {[%emt 0:01:14]} Rc6 {[%emt 0:03:46]} 28. Nd3 {[%emt 0:00:07]} Bf8 {[%emt 0:02:40]} 29. Ne5 {[%emt 0:02:15]} Rc7 {[%emt 0:00:10]} 30. Rad1 {[%emt 0:02:19]} Bd6 {[%emt 0:03:22]} 31. Nd3 {[%emt 0:01:08]} Rac8 {[%emt 0:01:01]} 32. f4 {[%emt 0:05:58]} b5 {[%emt 0:00:31]} 33. Rf1 {[%emt 0:01:00]} a5 {[%emt 0:00:56]} 34. Rd2 {[%emt 0:03:23]} b4 {[%emt 0:03:26]} 35. axb4 {[%emt 0:00:01]} axb4 {[%emt 0:00:03]} 36. cxb4 {[%emt 0:00:03]} Rc4 {[%emt 0:00:20]} 37. Ne5 {[%emt 0:00:50]} Rxb4 {[%emt 0:00:17]} 38. g4 {[%emt 0:01:57]} Re8 {[%emt 0:12:51]} 39. Kg2 {[%emt 0:00:33]} Qg7 {[%emt 0:00:54]} 40. Qc3 {[%emt 0:00:15]} f6 {[%emt 0:01:31]} 41. Nf3 {[%emt 0:00:16]} Rc4 {[%emt 0:00:13]} 42. Qe3 {[%emt 0:00:09]} Qc7 {[%emt 0:01:45]} 43. Ne1 {[%emt 0:01:08]} Re7 {[%emt 0:01:43]} 44. Rff2 {[%emt 0:00:20]} Bb4 {[%emt 0:02:00]} 45. Rd3 {[%emt 0:00:48]} Rc1 {[%emt 0:00:57]} 46. Nf3 {[%emt 0:00:03]} Rc2 {[%emt 0:00:52]} 47. Ne1 {[%emt 0:00:55]} Rxf2+ {[%emt 0:00:21]} 48. Kxf2 {[%emt 0:00:07]} e5 {[%emt 0:00:47]} 49. fxe5 {[%emt 0:00:42]} fxe5 {[%emt 0:00:05]} 50. Ng2 {[%emt 0:00:42]} exd4 {[%emt 0:01:10]} 51. Qg3 {[%emt 0:00:02]} Bd6 {[%emt 0:00:42]} 0-1

[Event "UZB-ch Women 2021"]
[Site "Tashkent"]
[Date "2021.04.25"]
[Round "9.1"]
[White "Semenova, Irina"]
[Black "Saparova, Sitora"]
[Result "1-0"]
[ECO "A39"]
[WhiteElo "2188"]
[BlackElo "2017"]
[Annotator "ChessBase"]
[PlyCount "75"]
[EventDate "2021.04.17"]
[EventType "tourn"]
[EventCountry "UZB"]
[SourceTitle "playchess.com"]
[Source "ChessBase"]
[SourceQuality "1"]
[TimeControl "5400+30"]

1. Nf3 {[%emt 0:00:00]} Nf6 {[%emt 0:00:00]} 2. c4 {[%emt 0:00:00]} c5 {[%emt 0:00:06]} 3. Nc3 {[%emt 0:00:00]} Nc6 {[%emt 0:00:34]} 4. g3 {[%emt 0:00:33]} g6 {[%emt 0:00:15]} 5. d4 {[%emt 0:00:17]} cxd4 {[%emt 0:02:45]} 6. Nxd4 {[%emt 0:00:08]} Bg7 {[%emt 0:00:14]} 7. Bg2 {[%emt 0:00:20]} O-O {[%emt 0:00:24]} 8. O-O {[%emt 0:00:44]} Qa5 {[%emt 0:11:40]} 9. Nb3 {[%emt 0:00:27]} Qd8 {[%emt 0:15:40]} 10. c5 {[%emt 0:11:56]} b6 {[%emt 0:05:33]} 11. cxb6 {[%emt 0:00:44]} axb6 {[%emt 0:01:11]} 12. h3 {[%emt 0:00:50]} Bb7 {[%emt 0:01:16]} 13. Be3 {[%emt 0:11:51]} d6 {[%emt 0:02:08]} 14. Qd2 {[%emt 0:09:04]} Na5 {[%emt 0:09:16]} 15. Bxb7 {[%emt 0:16:40]} Nxb7 {[%emt 0:00:05]} 16. Nd4 {[%emt 0:00:09]} Nc5 {[%emt 0:00:28]} 17. Kh2 {[%emt 0:08:19]} Qd7 {[%emt 0:05:07]} 18. Rfd1 {[%emt 0:02:30]} Na4 {[%emt 0:11:10]} 19. Nxa4 {[%emt 0:18:15]} Rxa4 {[%emt 0:00:31]} 20. Qd3 {[%emt 0:01:32]} Ra5 {[%emt 0:04:12]} 21. Kg2 {[%emt 0:00:59]} Rh5 {[%emt 0:06:13]} 22. Rh1 {[%emt 0:00:41]} e5 {[%emt 0:04:59]} 23. Nb3 {[%emt 0:00:55]} Qb7+ {[%emt 0:00:18]} 24. Kg1 {[%emt 0:01:12]} Ng4 {[%emt 0:02:21]} 25. Rd1 {[%emt 0:01:49]} Rd8 {[%emt 0:07:06]} 26. Qd5 {[%emt 0:00:37]} Qxd5 {[%emt 0:00:34]} 27. Rxd5 {[%emt 0:00:07]} Nxe3 {[%emt 0:00:22]} 28. fxe3 {[%emt 0:00:06]} Bh6 {[%emt 0:04:29]} 29. e4 {[%emt 0:03:38]} f5 {[%emt 0:03:32]} 30. Kg2 {[%emt 0:00:08]} Bf8 {[%emt 0:00:41]} 31. Rc1 {[%emt 0:01:41]} Rg5 {[%emt 0:00:40]} 32. Nd2 {[%emt 0:01:05]} fxe4 {[%emt 0:01:24]} 33. g4 {[%emt 0:02:18]} Bh6 {[%emt 0:00:30]} 34. Rf1 {[%emt 0:00:26]} e3 {[%emt 0:00:37]} 35. Ne4 {[%emt 0:00:19]} Rc8 {[%emt 0:00:34]} 36. Rxd6 {[%emt 0:00:45]} Rc2 {[%emt 0:00:32]} 37. Rd8+ {[%emt 0:01:02]} Kg7 {[%emt 0:00:01]} 38. Rd5 {[%emt 0:06:53]} 1-0